bitfinex/quotes_SOLUSD_20220128
["timestamp","ask_amount","ask_price","bid_price","bid_amount"]
[1643388575557,6.0,91.878,91.797,0.25]
[1643388576158,2.95669142,91.877,91.797,0.25]
[1643388576559,6.0,91.887,91.806,6.0]
[1643388576759,0.25,91.886,91.807,0.25]
[1643388576959,6.0,91.881,91.807,0.25]
[1643388577566,8.37,91.881,91.807,0.25]
[1643388577760,8.37,91.881,91.789,1.48171832]
[1643388578063,8.37,91.881,91.7,189.85]
[1643388578064,6.0,91.871,91.785,1.48171832]
[1643388578261,24.1103,91.87,91.784,1.48171832]
[1643388578562,49.41499142,91.87,91.783,1.48171832]
[1643388578761,2.95669142,91.869,91.783,1.48171832]
[1643388578961,27.15909142,91.869,91.783,1.48171832]
[1643388579261,6.0,91.859,91.774,41.70123779]
[1643388579460,22.6764,91.858,91.774,41.70123779]
[1643388579660,6.0,91.856,91.774,41.70123779]
[1643388579862,6.0,91.848,91.774,41.70123779]
[1643388580061,6.0,91.847,91.774,41.70123779]
[1643388580263,6.25,91.847,91.774,41.70123779]
[1643388580465,6.0,91.84,91.774,41.70123779]
[1643388580666,6.0,91.84,91.775,0.25]
[1643388580964,6.0,91.837,91.761,1.48171832]
[1643388581164,16.356,91.83,91.754,1.48171832]
[1643388581363,0.25,91.829,91.748,1.48171832]
[1643388581565,6.0,91.82,91.747,1.48171832]
[1643388581892,6.0,91.82,91.709,23.8159]
[1643388581893,0.25,91.819,91.762,47.45884106]
[1643388582495,0.25,91.819,91.768,0.25]
[1643388582894,0.25,91.819,91.762,47.45884106]
[1643388583200,0.25,91.828,91.762,47.45884106]
[1643388583401,0.25,91.838,91.768,0.25]
[1643388584398,0.25,91.838,91.762,47.45884106]
[1643388584597,2.95669142,91.837,91.762,47.45884106]
[1643388584798,0.25,91.836,91.762,47.45884106]
[1643388584999,6.0,91.827,91.762,47.45884106]
[1643388585399,0.25,91.826,91.768,0.25]
[1643388585602,0.25,91.826,91.762,47.45884106]
[1643388585803,0.25,91.826,91.768,0.25]
[1643388586404,0.25,91.837,91.768,0.25]
[1643388586801,22.7394,91.838,91.768,0.25]
[1643388587601,6.0,91.828,91.768,0.25]
[1643388588801,0.25,91.827,91.762,47.45884106]
[1643388589003,0.25,91.827,91.768,0.25]
[1643388590015,1.51131077,91.865,91.768,0.25]
[1643388590207,1.51131077,91.883,91.768,0.25]
[1643388590404,1.51131077,91.892,91.778,40.35039011]
[1643388590608,1.51131077,91.895,91.789,109.9]
[1643388590806,1.51131077,91.895,91.79,0.25]
[1643388591006,1.51131077,91.896,91.79,2.43578927]
[1643388591204,1.51131077,91.899,91.79,2.43578927]
[1643388591408,1.51131077,91.9,91.793,48.048443]
[1643388591707,6.0,91.89,91.793,48.048443]
[1643388591906,6.0,91.89,91.794,2.43578927]
[1643388592107,6.0,91.891,91.794,2.43578927]
[1643388592305,0.25,91.89,91.795,2.18578927]
[1643388592506,23.382,91.89,91.794,0.25]
[1643388592708,6.0,91.88,91.793,48.048443]
[1643388593206,29.382,91.879,91.793,48.048443]
[1643388593810,29.382,91.879,91.773,1.48171832]
[1643388594011,29.382,91.879,91.767,115.18171832]
[1643388594012,6.0,91.87,91.767,115.18171832]
[1643388594209,1.51131077,91.867,91.767,113.7]
[1643388594409,6.0,91.868,91.767,113.7]
[1643388594608,6.0,91.857,91.767,113.7]
[1643388594810,23.1551,91.856,91.768,38.67780767]
[1643388595009,29.1551,91.856,91.768,38.67780767]
[1643388595211,6.0,91.847,91.768,38.67780767]
[1643388595410,6.0,91.847,91.769,0.25]
[1643388595613,6.0,91.845,91.769,0.25]
[1643388595809,0.25,91.844,91.769,0.25]
[1643388596010,6.0,91.836,91.769,0.25]
[1643388596213,6.0,91.835,91.769,0.25]
[1643388596410,16.72,91.835,91.769,0.25]
[1643388597812,6.25,91.835,91.769,0.25]
[1643388598213,6.25,91.835,91.768,38.67780767]
[1643388598715,6.0,91.834,91.768,38.67780767]
[1643388599113,0.25,91.833,91.768,38.67780767]
[1643388599713,0.25,91.833,91.769,0.25]
[1643388600112,6.0,91.83,91.769,0.25]
[1643388600311,0.25,91.829,91.769,0.25]
[1643388601514,0.25,91.834,91.769,0.25]
[1643388602115,0.25,91.834,91.767,113.7]
[1643388602316,16.84669142,91.834,91.767,113.7]
[1643388602616,6.0,91.824,91.767,113.7]
[1643388602816,0.25,91.823,91.767,113.7]
[1643388603017,9.20669142,91.823,91.767,113.7]
[1643388603216,2.95669142,91.822,91.767,113.7]
[1643388603619,6.0,91.812,91.767,113.7]
[1643388603822,0.25,91.811,91.767,113.7]
[1643388604018,6.25,91.823,91.767,113.7]
[1643388604918,6.0,91.823,91.767,113.7]
[1643388605618,74.011074,91.833,91.767,113.7]
[1643388605619,6.0,91.82,91.767,113.7]
[1643388606022,74.011074,91.833,91.767,113.7]
[1643388606023,0.25,91.819,91.767,113.7]
[1643388606421,0.25,91.822,91.767,113.7]
[1643388607820,0.25,91.822,91.768,0.25]
[1643388608453,50.793474,91.833,91.768,0.25]
[1643388608655,1.51131077,91.872,91.768,110.15]
[1643388608852,1.51131077,91.887,91.795,0.30783555]
[1643388609053,1.51131077,91.898,91.795,11.77]
[1643388609252,1.51131077,91.901,91.796,0.25]
[1643388609451,1.51131077,91.907,91.805,6.0]
[1643388609651,35.62013576,91.906,91.805,6.0]
[1643388609852,35.62013576,91.906,91.807,6.0]
[1643388610052,35.62013576,91.906,91.821,36.42131853]
[1643388610254,35.62013576,91.906,91.822,0.25]
[1643388610653,0.25,91.905,91.822,0.25]
[1643388611053,35.62013576,91.906,91.822,0.25]
[1643388611255,2.95669142,91.905,91.822,0.25]
[1643388611752,35.62013576,91.906,91.822,0.25]
[1643388611954,35.62013576,91.906,91.822,110.15]
[1643388612772,3.0,91.87,91.822,110.15]
[1643388614860,3.0,91.87,91.822,109.9]
[1643388615056,0.25,91.869,91.822,109.9]
[1643388615255,0.25,91.869,91.821,36.42131853]
[1643388615857,0.25,91.869,91.769,23.2996]
[1643388616057,2.95669142,91.868,91.769,23.2996]
[1643388616258,0.25,91.867,91.769,23.2996]
[1643388616463,6.0,91.858,91.764,109.9]
[1643388616663,19.55,91.858,91.756,1.48171832]
[1643388616863,40.25456027,91.857,91.766,6.0]
[1643388617067,6.0,91.847,91.767,6.0]
[1643388617261,0.25,91.846,91.768,0.25]
[1643388617662,9.20669142,91.846,91.768,0.25]
[1643388617860,3.20669142,91.846,91.768,0.25]
[1643388618063,6.0,91.836,91.768,0.25]
[1643388618262,8.59511323,91.835,91.768,0.25]
[1643388618660,6.0,91.825,91.767,6.0]
[1643388618960,0.25,91.824,91.767,6.0]
[1643388619364,0.25,91.824,91.764,223.6]
[1643388620868,0.25,91.824,91.728,115.18171832]
[1643388620869,12.42,91.824,91.728,115.18171832]
[1643388621065,6.0,91.814,91.728,113.7]
[1643388621263,0.25,91.813,91.728,113.7]
[1643388621762,32.90457118,91.813,91.729,148.4264853]
[1643388621965,32.90457118,91.813,91.729,38.5264853]
[1643388622166,6.0,91.803,91.729,38.5264853]
[1643388622364,0.25,91.802,91.73,0.25]
[1643388623068,9.46,91.802,91.73,0.25]
[1643388623264,9.46,91.802,91.729,38.5264853]
[1643388623465,12.7384109,91.791,91.729,38.5264853]
[1643388623865,0.25,91.79,91.729,38.5264853]
[1643388624468,0.25,91.79,91.73,0.25]
[1643388625066,0.25,91.79,91.729,38.2764853]
[1643388625467,6.0,91.781,91.729,38.2764853]
[1643388625871,0.25,91.78,91.729,38.2764853]
[1643388626068,0.25,91.78,91.728,113.7]
[1643388626668,0.25,91.78,91.686,1.48171832]
[1643388627072,0.25,91.78,91.687,39.20481642]
[1643388627073,6.25,91.78,91.687,39.20481642]
[1643388628069,6.25,91.78,91.697,6.0]
[1643388629171,6.25,91.78,91.698,109.9]
[1643388629371,6.25,91.78,91.698,0.25]
[1643388630572,6.25,91.78,91.698,110.15]
[1643388630973,6.0,91.78,91.698,110.15]
[1643388631273,6.0,91.78,91.699,0.25]
[1643388631473,6.0,91.78,91.697,6.0]
[1643388631675,22.364,91.78,91.697,6.0]
[1643388631875,2.95669142,91.779,91.697,6.0]
[1643388632076,32.90457118,91.768,91.698,0.25]
[1643388632278,0.25,91.767,91.698,0.25]
[1643388632476,6.0,91.758,91.698,0.25]
[1643388633876,6.0,91.78,91.698,0.25]
[1643388634402,32.99108535,91.779,91.698,6.25]
[1643388634680,6.0,91.769,91.698,6.25]
[1643388634877,0.25,91.768,91.698,0.25]
[1643388635276,0.25,91.768,91.689,0.25]
[1643388635683,0.25,91.768,91.687,39.20481642]
[1643388635684,0.25,91.768,91.697,6.0]
[1643388635878,0.25,91.768,91.698,0.25]
[1643388636078,17.93135144,91.817,91.7,6.0]
[1643388636280,122.8288,91.844,91.701,0.25]
[1643388636478,6.0,91.801,91.701,9.66623438]
[1643388636785,6.0,91.816,91.73,16.353]
[1643388636981,2.95669142,91.8,91.72,34.3322015]
[1643388637187,2.95669142,91.8,91.721,109.9]
[1643388637380,1.51131077,91.842,91.721,109.9]
[1643388637381,1.51131077,91.854,91.73,6.0]
[1643388637580,15.9516,91.914,91.731,6.0]
[1643388637581,48.8897,91.865,91.731,6.0]
[1643388637778,48.8897,91.865,91.732,0.25]
[1643388637979,48.8897,91.865,91.732,56.88703959]
[1643388638179,36.46343088,91.864,91.751,39.20481642]
[1643388638378,36.46343088,91.864,91.752,110.15]
[1643388638580,6.0,91.854,91.752,0.25]
[1643388638783,0.25,91.853,91.752,0.25]
[1643388638980,6.0,91.854,91.752,0.25]
[1643388639784,2.95669142,91.853,91.751,39.20481642]
[1643388639981,6.0,91.843,91.761,6.0]
[1643388640383,6.0,91.839,91.751,39.20481642]
[1643388640582,34.25591282,91.829,91.751,39.20481642]
[1643388640783,0.25,91.828,91.751,39.20481642]
[1643388640982,6.0,91.819,91.751,39.20481642]
[1643388641181,6.0,91.819,91.752,0.25]
[1643388641386,0.25,91.818,91.752,0.25]
[1643388642481,2.95669142,91.817,91.752,0.25]
[1643388642884,0.25,91.816,91.752,0.25]
[1643388643282,3.20669142,91.816,91.752,0.25]
[1643388643481,11.38706926,91.815,91.752,0.25]
[1643388643682,6.0,91.806,91.752,0.25]
[1643388643884,6.25,91.805,91.752,0.25]
[1643388644083,6.25,91.805,91.714,109.9]
[1643388644283,6.25,91.805,91.72,0.25]
[1643388644684,6.0,91.804,91.72,0.25]
[1643388644887,6.0,91.795,91.72,0.25]
[1643388645084,33.23690508,91.794,91.72,147.0906435]
[1643388645285,33.23690508,91.794,91.72,146.8406435]
[1643388645484,0.25,91.793,91.72,146.8406435]
[1643388647686,0.25,91.793,91.721,0.25]
[1643388648887,0.25,91.803,91.721,0.25]
[1643388649088,0.25,91.803,91.72,163.1946435]
[1643388649286,0.25,91.803,91.72,36.9406435]
[1643388649688,44.19673222,91.803,91.72,36.9406435]
[1643388650095,6.0,91.793,91.72,36.9406435]
[1643388650390,0.25,91.792,91.72,36.9406435]
[1643388650690,6.0,91.792,91.721,109.9]
[1643388650891,6.0,91.792,91.72,36.9406435]
[1643388651890,6.0,91.792,91.721,109.9]
[1643388652293,0.25,91.791,91.721,109.9]
[1643388653292,0.25,91.791,91.722,0.25]
[1643388653792,0.25,91.791,91.72,36.9406435]
[1643388657804,0.25,91.791,91.72,36.4406435]
[1643388660305,6.0,91.792,91.721,0.25]
[1643388660504,23.4533,91.802,91.721,109.9]
[1643388660902,23.4533,91.802,91.72,36.4406435]
[1643388661205,2.95669142,91.801,91.721,110.15]
[1643388661402,23.4533,91.802,91.721,0.25]
[1643388661403,6.0,91.792,91.721,0.25]
[1643388661602,6.0,91.791,91.721,0.25]
[1643388661803,6.0,91.792,91.721,0.25]
[1643388662203,0.25,91.791,91.721,0.25]
[1643388662403,6.0,91.792,91.721,0.25]
[1643388663804,6.0,91.792,91.72,36.4406435]
[1643388664005,15.8,91.792,91.72,36.4406435]
[1643388664205,18.75669142,91.792,91.72,36.4406435]
[1643388664622,2.19624986,91.789,91.72,36.4406435]
[1643388664921,0.25,91.788,91.72,36.4406435]
[1643388665125,6.0,91.779,91.72,36.4406435]
[1643388665324,0.25,91.778,91.72,36.4406435]
[1643388666924,6.0,91.792,91.72,36.4406435]
[1643388667323,0.25,91.791,91.72,36.4406435]
[1643388667525,37.34724175,91.791,91.72,36.4406435]
[1643388668327,6.0,91.781,91.721,109.9]
[1643388668525,6.0,91.781,91.72,36.4406435]
[1643388668734,0.25,91.78,91.72,36.4406435]
[1643388670131,6.25,91.78,91.72,36.4406435]
[1643388671232,0.25,91.78,91.72,36.4406435]
[1643388671532,0.25,91.78,91.721,0.25]
[1643388671738,0.25,91.789,91.721,110.15]
[1643388672135,1.51131077,91.807,91.721,110.15]
[1643388672333,0.25,91.806,91.722,2.20683301]
[1643388672534,6.0,91.801,91.732,115.9]
[1643388672733,6.0,91.801,91.732,126.49]
[1643388672933,0.25,91.8,91.733,2.45683301]
[1643388673433,0.25,91.8,91.729,1.48171832]
[1643388673635,0.25,91.8,91.724,109.9]
[1643388674035,6.0,91.795,91.724,109.9]
[1643388674334,0.25,91.794,91.724,111.38171832]
[1643388674537,0.25,91.794,91.72,36.4406435]
[1643388675236,1.51131077,91.791,91.7,1.48171832]
[1643388675434,1.51131077,91.781,91.7,1.48171832]
[1643388675637,1.51131077,91.781,91.64,45.7359]
[1643388675638,16.367,91.77,91.688,1.48171832]
[1643388675836,25.1592,91.769,91.68,1.48171832]
[1643388676034,6.0,91.759,91.68,1.48171832]
[1643388676235,111.68214351,91.758,91.675,45.00799178]
[1643388676435,7.51131077,91.752,91.662,1.48171832]
[1643388676637,109.9,91.747,91.66,1.48171832]
[1643388676838,16.373,91.74,91.66,1.48171832]
[1643388677135,6.0,91.73,91.659,1.48171832]
[1643388677337,6.0,91.73,91.648,1.48171832]
[1643388677535,50.36083857,91.729,91.649,35.47700954]
[1643388677736,50.36083857,91.729,91.649,35.72700954]
[1643388677936,50.36083857,91.729,91.649,35.47700954]
[1643388678137,50.36083857,91.729,91.65,0.25]
[1643388678341,0.25,91.728,91.65,0.25]
[1643388678939,6.0,91.72,91.65,0.25]
[1643388679340,6.25,91.719,91.649,35.47700954]
[1643388679956,6.0,91.71,91.649,35.47700954]
[1643388680142,1.78214351,91.714,91.649,35.47700954]
[1643388680348,0.25,91.709,91.649,35.47700954]
[1643388680540,0.25,91.709,91.643,113.7]
[1643388680541,6.0,91.704,91.643,113.7]
[1643388680742,109.9,91.703,91.643,113.7]
[1643388680946,6.0,91.699,91.617,1.48171832]
[1643388681142,6.0,91.693,91.604,113.7]
[1643388681341,0.25,91.692,91.604,113.7]
[1643388681545,0.25,91.692,91.605,40.91082414]
[1643388681546,50.61083857,91.692,91.605,40.91082414]
[1643388681942,50.61083857,91.692,91.61,1.48171832]
[1643388682142,6.25,91.692,91.61,1.48171832]
[1643388682346,6.25,91.692,91.612,1.48171832]
[1643388682641,0.25,91.692,91.622,6.0]
[1643388682842,46.7978,91.737,91.64,16.369]
[1643388683050,24.43111077,91.767,91.623,0.25]
[1643388683051,22.9198,91.767,91.652,113.7]
[1643388683358,43.50140015,91.765,91.653,82.8401121]
[1643388683550,43.50140015,91.765,91.663,6.0]
[1643388683743,43.50140015,91.765,91.664,0.25]
[1643388684541,6.0,91.755,91.664,0.25]
[1643388684742,6.0,91.755,91.653,82.5901121]
[1643388684942,2.64158193,91.749,91.654,109.9]
[1643388685343,6.0,91.739,91.653,82.5901121]
[1643388685543,6.0,91.739,91.653,33.6079121]
[1643388685950,6.0,91.738,91.653,33.6079121]
[1643388686151,6.25,91.738,91.653,33.6079121]
[1643388686749,24.6499,91.737,91.654,0.25]
[1643388687149,0.25,91.736,91.653,33.6079121]
[1643388687349,0.25,91.736,91.652,113.7]
[1643388687549,6.0,91.727,91.652,113.7]
[1643388687748,0.25,91.726,91.652,113.7]
[1643388688148,6.25,91.726,91.652,113.7]
[1643388688450,42.41713125,91.725,91.653,40.0624194]
[1643388688850,6.0,91.715,91.653,40.0624194]
[1643388689348,0.25,91.714,91.653,40.0624194]
[1643388690782,3.00072829,91.806,91.654,110.15]
[1643388690982,6.0,91.763,91.654,110.15]
[1643388691184,6.0,91.763,91.66,16.365]
[1643388691383,6.0,91.762,91.661,0.25]
[1643388691582,38.33891617,91.761,91.661,0.25]
[1643388691981,6.0,91.751,91.661,0.25]
[1643388692381,6.0,91.75,91.661,0.25]
[1643388692582,6.0,91.749,91.654,0.25]
[1643388692784,6.25,91.749,91.654,0.25]
[1643388693183,6.25,91.749,91.654,110.15]
[1643388693383,7.80406591,91.747,91.654,110.15]
[1643388693683,6.0,91.737,91.654,110.15]
[1643388693887,0.25,91.736,91.654,110.15]
[1643388694086,0.25,91.736,91.655,0.25]
[1643388694685,16.374,91.73,91.653,40.0624194]
[1643388694888,0.25,91.729,91.627,1.48171832]
[1643388695186,6.0,91.72,91.627,1.48171832]
[1643388695386,6.0,91.72,91.608,113.7]
[1643388695387,23.8581,91.719,91.618,1.48171832]
[1643388695589,23.8581,91.719,91.616,1.48171832]
[1643388695590,6.0,91.709,91.616,1.48171832]
[1643388695889,60.74513988,91.708,91.617,35.05543895]
[1643388696288,6.0,91.698,91.618,0.25]
[1643388696689,0.25,91.697,91.618,0.25]
[1643388696888,0.25,91.697,91.617,35.05543895]
[1643388698790,54.59,91.73,91.618,109.1]
[1643388698997,2.95669142,91.733,91.643,113.7]
[1643388699191,1.51131077,91.775,91.643,124.08]
[1643388699489,1.51131077,91.786,91.653,6.0]
[1643388699688,2.95669142,91.774,91.653,6.0]
[1643388699892,58.11366634,91.773,91.654,44.23157897]
[1643388700091,58.11366634,91.773,91.664,6.0]
[1643388700290,16.368,91.76,91.664,6.0]
[1643388700494,6.0,91.75,91.654,37.98157897]
[1643388700994,0.25,91.749,91.654,37.98157897]
[1643388701196,9.20669142,91.749,91.654,37.98157897]
[1643388701395,23.9143,91.748,91.654,37.98157897]
[1643388701601,6.0,91.738,91.654,37.98157897]
[1643388701796,57.03899898,91.737,91.654,37.98157897]
[1643388702003,109.1,91.736,91.654,37.98157897]
[1643388702199,6.0,91.727,91.654,37.98157897]
[1643388702502,109.1,91.736,91.654,37.98157897]
[1643388702503,6.25,91.726,91.654,37.98157897]
[1643388704106,0.25,91.726,91.654,37.98157897]
[1643388704300,6.0,91.716,91.654,37.98157897]
[1643388704500,0.25,91.726,91.654,37.98157897]
[1643388704501,13.0182831,91.715,91.654,37.98157897]
[1643388704699,13.2682831,91.715,91.654,37.98157897]
[1643388704899,23.773,91.725,91.654,37.98157897]
[1643388704900,0.25,91.714,91.654,37.98157897]
[1643388706102,6.0,91.723,91.654,37.98157897]
[1643388706303,2.56980354,91.722,91.637,1.48171832]
[1643388706606,6.0,91.712,91.629,1.48171832]
[1643388706802,6.0,91.712,91.584,4.35859658]
[1643388706803,132.5793,91.711,91.628,1.48171832]
[1643388707003,6.0,91.701,91.628,1.48171832]
[1643388707202,40.71673337,91.7,91.629,40.94996274]
[1643388707405,40.96673337,91.7,91.629,40.94996274]
[1643388707605,6.0,91.69,91.629,40.94996274]
[1643388707804,0.25,91.689,91.629,40.94996274]
[1643388709533,6.25,91.689,91.629,40.94996274]
[1643388709933,6.25,91.689,91.629,40.44996274]
[1643388711138,0.25,91.689,91.629,40.44996274]
[1643388711337,0.25,91.698,91.629,40.44996274]
[1643388711538,6.0,91.689,91.629,40.44996274]
[1643388711841,0.25,91.688,91.629,40.44996274]
[1643388713138,5.92624871,91.679,91.629,40.44996274]
[1643388713337,0.25,91.678,91.599,1.48171832]
[1643388713539,6.0,91.669,91.599,1.48171832]
[1643388713740,6.0,91.669,91.598,1.48171832]
[1643388713939,0.25,91.668,91.607,6.0]
[1643388714340,0.25,91.668,91.608,47.91576298]
[1643388715140,0.25,91.678,91.608,47.91576298]
[1643388715342,2.95669142,91.708,91.608,47.91576298]
[1643388715640,24.2523,91.699,91.609,0.25]
[1643388716041,24.2523,91.699,91.611,1.48171832]
[1643388716240,24.2523,91.699,91.613,1.48171832]
[1643388716443,45.03431763,91.698,91.613,1.48171832]
[1643388716641,45.03431763,91.698,91.614,0.25]
[1643388716843,45.03431763,91.698,91.613,1.48171832]
[1643388717040,45.03431763,91.698,91.612,1.48171832]
[1643388717241,45.03431763,91.698,91.613,1.73171832]
[1643388717442,24.2523,91.699,91.613,0.25]
[1643388717642,76.3137,91.724,91.615,1.48171832]
[1643388717842,1.51131077,91.732,91.636,113.7]
[1643388718048,1.51131077,91.752,91.646,6.0]
[1643388718243,24.31561077,91.759,91.647,109.35]
[1643388718444,24.31561077,91.759,91.653,6.0]
[1643388718445,32.6673813,91.758,91.653,6.0]
[1643388718642,32.6673813,91.758,91.654,109.1]
[1643388718841,32.6673813,91.758,91.655,0.25]
[1643388719242,0.25,91.757,91.655,0.25]
[1643388719445,22.8043,91.759,91.665,109.1]
[1643388719643,1.51131077,91.768,91.665,109.1]
[1643388719842,23.9081,91.791,91.66,6.0]
[1643388719843,1.51131077,91.774,91.676,109.1]
[1643388720043,6.0,91.764,91.676,109.1]
[1643388720244,6.0,91.764,91.677,43.64916036]
[1643388720543,6.0,91.76,91.677,43.64916036]
[1643388720944,6.0,91.76,91.678,109.1]
[1643388721149,6.0,91.76,91.681,109.1]
[1643388721343,0.25,91.759,91.677,43.39916036]
[1643388721545,0.25,91.759,91.687,6.0]
[1643388721743,0.25,91.759,91.677,43.39916036]
[1643388722145,6.25,91.759,91.677,43.39916036]
[1643388722543,6.0,91.757,91.677,43.39916036]
[1643388722745,3.64808905,91.756,91.677,43.39916036]
[1643388722944,6.0,91.749,91.677,43.39916036]
[1643388723143,6.0,91.746,91.644,1.48171832]
[1643388723345,0.25,91.745,91.644,1.48171832]
[1643388723544,6.25,91.745,91.642,1.48171832]
[1643388723744,6.25,91.745,91.641,1.48171832]
[1643388724244,6.25,91.745,91.65,46.76653694]
[1643388724553,6.25,91.745,91.65,46.51653694]
[1643388725148,6.25,91.745,91.639,1.48171832]
[1643388725348,2.95669142,91.744,91.639,1.48171832]
[1643388725544,6.0,91.734,91.639,1.48171832]
[1643388725744,22.561,91.733,91.62,1.48171832]
[1643388725944,22.561,91.733,91.602,109.1]
[1643388725945,0.25,91.733,91.638,113.7]
[1643388726144,6.0,91.723,91.638,113.7]
[1643388726344,6.0,91.723,91.66,16.365]
[1643388726544,6.0,91.723,91.661,44.22939371]
[1643388726746,0.25,91.722,91.661,44.47939371]
[1643388727444,43.24489303,91.733,91.661,44.47939371]
[1643388727647,43.24489303,91.733,91.645,1.48171832]
[1643388727844,54.92489303,91.733,91.637,2.23592659]
[1643388728044,2.95669142,91.732,91.638,113.7]
[1643388728344,16.374,91.73,91.638,113.7]
[1643388728555,16.374,91.73,91.639,42.78268796]
[1643388728750,2.95669142,91.729,91.638,113.7]
[1643388729046,6.0,91.719,91.638,113.7]
[1643388729245,0.25,91.718,91.611,1.48171832]
[1643388729445,16.381,91.7,91.615,1.48171832]
[1643388729645,16.381,91.7,91.613,1.48171832]
[1643388729848,30.0279,91.719,91.614,44.16400168]
[1643388729849,6.0,91.69,91.614,44.16400168]
[1643388730349,0.25,91.689,91.614,44.16400168]
[1643388730545,6.25,91.689,91.614,44.16400168]
[1643388731150,6.25,91.689,91.609,1.48171832]
[1643388731351,2.95669142,91.688,91.609,1.48171832]
[1643388731549,6.0,91.678,91.593,1.48171832]
[1643388731748,6.0,91.678,91.568,113.7]
[1643388731749,16.388,91.66,91.584,1.48171832]
[1643388731951,27.858,91.66,91.568,115.18171832]
[1643388732149,6.0,91.65,91.569,43.18312882]
[1643388732351,0.25,91.649,91.569,43.18312882]
[1643388732548,6.0,91.648,91.569,43.18312882]
[1643388732748,0.25,91.649,91.569,43.18312882]
[1643388732749,0.25,91.647,91.569,43.18312882]
[1643388732949,23.0311,91.687,91.574,1.48171832]
[1643388733149,23.0311,91.687,91.586,1.48171832]
[1643388733348,6.0,91.676,91.59,1.48171832]
[1643388733553,6.0,91.676,91.602,113.7]
[1643388733751,44.34630781,91.675,91.603,29.3538891]
[1643388733949,16.385,91.67,91.603,29.3538891]
[1643388734151,6.0,91.665,91.603,29.3538891]
[1643388734351,6.0,91.66,91.603,29.3538891]
[1643388734957,6.0,91.675,91.603,29.3538891]
[1643388735554,44.97105224,91.674,91.603,29.3538891]
[1643388735754,0.25,91.673,91.603,29.3538891]
[1643388735956,6.0,91.664,91.603,29.3538891]
[1643388736356,109.35,91.663,91.563,1.48171832]
[1643388736555,109.35,91.663,91.561,109.1]
[1643388736556,6.0,91.653,91.561,110.58171832]
[1643388736964,75.0,91.651,91.535,0.00163678]
[1643388737160,22.68920154,91.481,91.467,285.57835547]
[1643388737358,6.31119793,91.48,91.467,271.26204643]
[1643388737560,6.0,91.47,91.468,7.39357]
[1643388737758,0.25,91.469,91.468,7.39357]
[1643388737958,6.06119793,91.48,91.467,164.45354643]
[1643388738960,6.06119793,91.48,91.466,37.08647543]
[1643388739158,6.06119793,91.48,91.38,54.689]
[1643388739359,0.25,91.479,91.346,70.6723]
[1643388740167,6.06119793,91.48,91.351,42.20502471]
[1643388740369,6.06119793,91.48,91.371,40.25368356]
[1643388740565,6.06119793,91.48,91.381,6.0]
[1643388740765,0.25,91.479,91.381,6.0]
[1643388741165,0.25,91.479,91.371,40.25368356]
[1643388741564,6.0,91.47,91.371,40.25368356]
[1643388741765,0.25,91.469,91.371,40.25368356]
[1643388742372,6.06119793,91.48,91.371,40.25368356]
[1643388742574,6.06119793,91.48,91.38,16.412]
[1643388742973,6.06119793,91.48,91.395,0.31003728]